[Event "Early-Titled-Tuesday-Blitz-October-03-2023"]
[Site "Chess.com"]
[Date "2023.10.03"]
[Round "1"]
[White "Al_Shima"]
[Black "Elprofessor21"]
[Result "0-1"]
[WhiteElo "2339"]
[BlackElo "2641"]
[TimeControl "180+1"]
[EndTime "8:05:49 PDT"]
[Termination "Elprofessor21 won by resignation"]

1. b3 {[%clk 0:03:00.9]} 1... d5 {[%clk 0:02:59.8]} 2. Bb2 {[%clk 0:03:00.1]}
2... Nc6 {[%clk 0:02:59.2]} 3. e3 {[%clk 0:03:00.1]} 3... Nf6 {[%clk 0:02:57.2]}
4. Bb5 {[%clk 0:02:59.9]} 4... Bd7 {[%clk 0:02:56.8]} 5. f4 {[%clk 0:02:59.4]}
5... g6 {[%clk 0:02:50.1]} 6. Bxc6 {[%clk 0:02:56.7]} 6... Bxc6 {[%clk
0:02:49.6]} 7. Nf3 {[%clk 0:02:54.2]} 7... Bg7 {[%clk 0:02:49.7]} 8. Ne5 {[%clk
0:02:54]} 8... Bd7 {[%clk 0:02:46.2]} 9. Nxd7 {[%clk 0:02:50.1]} 9... Qxd7
{[%clk 0:02:46.1]} 10. d3 {[%clk 0:02:49.4]} 10... O-O {[%clk 0:02:45.7]} 11.
Nd2 {[%clk 0:02:48.9]} 11... c5 {[%clk 0:02:35.1]} 12. Qe2 {[%clk 0:02:47.4]}
12... d4 {[%clk 0:02:17.1]} 13. e4 {[%clk 0:02:45.9]} 13... Ng4 {[%clk
0:02:15.8]} 14. Nf1 {[%clk 0:02:43.1]} 14... e5 {[%clk 0:02:09.3]} 15. h3 {[%clk
0:02:41.5]} 15... Nf6 {[%clk 0:02:08.5]} 16. fxe5 {[%clk 0:02:40.8]} 16... Nh5
{[%clk 0:02:08.5]} 17. g4 {[%clk 0:02:34.7]} 17... Nf4 {[%clk 0:02:08.4]} 18.
Qf3 {[%clk 0:02:30.2]} 18... Bxe5 {[%clk 0:02:07]} 19. Bc1 {[%clk 0:02:26.8]}
19... Ne6 {[%clk 0:02:04.4]} 20. Bh6 {[%clk 0:02:20.3]} 20... Rfc8 {[%clk
0:01:40.6]} 21. a4 {[%clk 0:02:17.8]} 21... Qd6 {[%clk 0:01:31.8]} 22. h4 {[%clk
0:02:11.2]} 22... Bf4 {[%clk 0:01:27.7]} 23. Bxf4 {[%clk 0:02:06.8]} 23... Qxf4
{[%clk 0:01:23.1]} 24. Qxf4 {[%clk 0:01:46.4]} 24... Nxf4 {[%clk 0:01:24]} 25.
Nd2 {[%clk 0:01:45]} 25... Ng2+ {[%clk 0:01:23.3]} 26. Ke2 {[%clk 0:01:43.8]}
26... Ne3 {[%clk 0:01:24.2]} 27. Rac1 {[%clk 0:01:37.6]} 27... Nxg4 {[%clk
0:01:21.8]} 28. Nc4 {[%clk 0:01:36.6]} 28... h5 {[%clk 0:01:10.5]} 29. Rcf1
{[%clk 0:01:31.9]} 29... Rc7 {[%clk 0:01:08.2]} 30. a5 {[%clk 0:01:12.8]} 30...
Re8 {[%clk 0:01:03.8]} 31. Kd2 {[%clk 0:01:11.4]} 31... Re6 {[%clk 0:01:01.7]}
32. b4 {[%clk 0:01:08.8]} 32... cxb4 {[%clk 0:00:59.4]} 33. Rb1 {[%clk
0:01:07.5]} 33... Nf2 {[%clk 0:00:59.8]} 34. Rhf1 {[%clk 0:01:04.6]} 34... Nxe4+
{[%clk 0:01:00.3]} 35. Kc1 {[%clk 0:01:01.4]} 35... Nc3 {[%clk 0:01:00.1]} 36.
Rb3 {[%clk 0:00:59.5]} 36... b5 {[%clk 0:00:54.6]} 37. axb6 {[%clk 0:00:58.1]}
37... axb6 {[%clk 0:00:55.3]} 38. Kb2 {[%clk 0:00:57.7]} 38... b5 {[%clk
0:00:55.3]} 39. Nd2 {[%clk 0:00:54.7]} 39... Re2 {[%clk 0:00:55.3]} 0-1

[Event "Early-Titled-Tuesday-Blitz-October-03-2023"]
[Site "Chess.com"]
[Date "2023.10.03"]
[Round "1"]
[White "Djager97"]
[Black "KVAIDAN"]
[Result "0-1"]
[WhiteElo "2575"]
[BlackElo "2263"]
[TimeControl "180+1"]
[EndTime "8:05:50 PDT"]
[Termination "KVAIDAN won on time"]

1. e4 {[%clk 0:03:00.1]} 1... e5 {[%clk 0:02:58.1]} 2. Nf3 {[%clk 0:03:00.1]}
2... d5 {[%clk 0:02:58.5]} 3. Nxe5 {[%clk 0:02:59.3]} 3... Bd6 {[%clk 0:02:58]}
4. d4 {[%clk 0:02:58.8]} 4... dxe4 {[%clk 0:02:58.5]} 5. Bc4 {[%clk 0:02:58.4]}
5... Bxe5 {[%clk 0:02:58]} 6. Qh5 {[%clk 0:02:58.8]} 6... Qe7 {[%clk 0:02:57]}
7. Qxe5 {[%clk 0:02:58.5]} 7... Qxe5 {[%clk 0:02:56.8]} 8. dxe5 {[%clk
0:02:59.4]} 8... Nc6 {[%clk 0:02:56.3]} 9. Nc3 {[%clk 0:02:58]} 9... Bf5 {[%clk
0:02:55.8]} 10. Bd5 {[%clk 0:02:43.1]} 10... Nge7 {[%clk 0:02:53.9]} 11. Bxe4
{[%clk 0:02:41.1]} 11... Bxe4 {[%clk 0:02:54.1]} 12. Nxe4 {[%clk 0:02:41.8]}
12... Nxe5 {[%clk 0:02:54.6]} 13. Bf4 {[%clk 0:02:40.9]} 13... N7c6 {[%clk
0:02:53]} 14. O-O-O {[%clk 0:02:36.7]} 14... O-O {[%clk 0:02:53.1]} 15. Rhe1
{[%clk 0:02:27.3]} 15... Rfe8 {[%clk 0:02:52.8]} 16. f3 {[%clk 0:02:18.5]} 16...
f6 {[%clk 0:02:52.7]} 17. Nc3 {[%clk 0:02:18.1]} 17... Rad8 {[%clk 0:02:50.4]}
18. Nb5 {[%clk 0:02:09.5]} 18... Rxd1+ {[%clk 0:02:45.1]} 19. Rxd1 {[%clk
0:02:10.4]} 19... Re7 {[%clk 0:02:43.1]} 20. Nc3 {[%clk 0:02:04.1]} 20... Kf7
{[%clk 0:02:39.7]} 21. b3 {[%clk 0:01:57.4]} 21... a6 {[%clk 0:02:39.8]} 22. Nd5
{[%clk 0:01:50.4]} 22... Rd7 {[%clk 0:02:39.6]} 23. c4 {[%clk 0:01:41.3]} 23...
Ne7 {[%clk 0:02:32.1]} 24. Nxe7 {[%clk 0:01:40.2]} 24... Rxd1+ {[%clk
0:02:26.9]} 25. Kxd1 {[%clk 0:01:41.1]} 25... Kxe7 {[%clk 0:02:27.5]} 26. Ke2
{[%clk 0:01:20.5]} 26... Ke6 {[%clk 0:02:25.4]} 27. g4 {[%clk 0:01:01]} 27... c5
{[%clk 0:02:23.8]} 28. Ke3 {[%clk 0:00:55.9]} 28... Nc6 {[%clk 0:02:18.8]} 29.
Ke4 {[%clk 0:00:51.9]} 29... Nb4 {[%clk 0:02:15.7]} 30. Be3 {[%clk 0:00:34.5]}
30... b6 {[%clk 0:02:12.7]} 31. a4 {[%clk 0:00:27.1]} 31... a5 {[%clk 0:02:10]}
32. Bf4 {[%clk 0:00:24.7]} 32... Nc2 {[%clk 0:02:09.8]} 33. Bc7 {[%clk
0:00:23.8]} 33... Nd4 {[%clk 0:02:10.2]} 34. Bxb6 {[%clk 0:00:23.1]} 34... Nxb3
{[%clk 0:02:10.7]} 35. Kd3 {[%clk 0:00:19.2]} 35... Kd6 {[%clk 0:02:09.3]} 36.
Kc3 {[%clk 0:00:19.4]} 36... Nd4 {[%clk 0:02:08.5]} 37. Bxa5 {[%clk 0:00:14.2]}
37... Nxf3 {[%clk 0:02:08.6]} 38. h3 {[%clk 0:00:13.2]} 38... Ng5 {[%clk
0:02:06.6]} 39. h4 {[%clk 0:00:11.8]} 39... Nf3 {[%clk 0:02:06.3]} 40. h5 {[%clk
0:00:08.5]} 40... Ne5 {[%clk 0:02:06.3]} 41. Bd8 {[%clk 0:00:01.7]} 41... Nxg4
{[%clk 0:02:03.2]} 42. a5 {[%clk 0:00:01.9]} 42... Kc6 {[%clk 0:02:03.6]} 43.
Kd3 {[%clk 0:00:01.7]} 43... Ne5+ {[%clk 0:02:03.2]} 0-1

[Event "Early-Titled-Tuesday-Blitz-October-03-2023"]
[Site "Chess.com"]
[Date "2023.10.03"]
[Round "1"]
[White "Goi_Manne"]
[Black "tetrix83"]
[Result "0-1"]
[WhiteElo "2281"]
[BlackElo "2615"]
[TimeControl "180+1"]
[EndTime "8:05:52 PDT"]
[Termination "tetrix83 won by resignation"]

1. e4 {[%clk 0:02:59.9]} 1... c5 {[%clk 0:02:59.3]} 2. Nf3 {[%clk 0:02:58.9]}
2... d6 {[%clk 0:02:59.7]} 3. Bb5+ {[%clk 0:02:58.6]} 3... Bd7 {[%clk
0:02:59.6]} 4. Bxd7+ {[%clk 0:02:58.6]} 4... Nxd7 {[%clk 0:03:00.5]} 5. O-O
{[%clk 0:02:59]} 5... Ngf6 {[%clk 0:03:01.1]} 6. Qe2 {[%clk 0:02:59.6]} 6... e6
{[%clk 0:03:00.8]} 7. Rd1 {[%clk 0:03:00.2]} 7... Be7 {[%clk 0:02:59.4]} 8. d4
{[%clk 0:03:00.8]} 8... cxd4 {[%clk 0:02:59.6]} 9. Nxd4 {[%clk 0:03:01.7]} 9...
O-O {[%clk 0:02:57.6]} 10. c4 {[%clk 0:03:00.8]} 10... a6 {[%clk 0:02:56.6]} 11.
Nc3 {[%clk 0:02:59.8]} 11... Qc7 {[%clk 0:02:56.2]} 12. h3 {[%clk 0:02:56.7]}
12... Rfc8 {[%clk 0:02:54.9]} 13. b3 {[%clk 0:02:52.8]} 13... b5 {[%clk
0:02:55.1]} 14. Bb2 {[%clk 0:02:44.2]} 14... bxc4 {[%clk 0:02:55.3]} 15. Rac1
{[%clk 0:02:39.6]} 15... Ne5 {[%clk 0:02:52.3]} 16. bxc4 {[%clk 0:02:33.7]}
16... Qxc4 {[%clk 0:02:49.6]} 17. Qe3 {[%clk 0:02:28.9]} 17... Qb4 {[%clk
0:02:45.7]} 18. Ba1 {[%clk 0:02:24.6]} 18... Rc4 {[%clk 0:02:37.8]} 19. f4
{[%clk 0:02:15.7]} 19... Ned7 {[%clk 0:02:27.8]} 20. Kh2 {[%clk 0:02:09.1]}
20... Rac8 {[%clk 0:02:27.3]} 21. Nce2 {[%clk 0:02:06]} 21... Rxc1 {[%clk
0:02:21]} 22. Rxc1 {[%clk 0:02:06.9]} 22... Rxc1 {[%clk 0:02:20.6]} 23. Nxc1
{[%clk 0:02:07.4]} 23... d5 {[%clk 0:02:18.9]} 24. e5 {[%clk 0:02:06.1]} 24...
Ne4 {[%clk 0:02:18.3]} 25. Nc6 {[%clk 0:02:03.1]} 25... Qc5 {[%clk 0:02:11.3]}
26. Nxe7+ {[%clk 0:02:03.3]} 26... Qxe7 {[%clk 0:02:11]} 27. Bd4 {[%clk
0:02:03]} 27... h5 {[%clk 0:02:08.8]} 28. Nd3 {[%clk 0:02:02]} 28... Qa3 {[%clk
0:02:08.1]} 29. Qe2 {[%clk 0:01:49.2]} 29... g6 {[%clk 0:02:05.5]} 30. Nf2
{[%clk 0:01:36.1]} 30... Qg3+ {[%clk 0:01:59.7]} 31. Kg1 {[%clk 0:01:33.5]}
31... Qxf4 {[%clk 0:01:58.8]} 32. Nxe4 {[%clk 0:01:30.7]} 32... Qxe4 {[%clk
0:01:53.6]} 33. Qb2 {[%clk 0:01:29.4]} 33... Kg7 {[%clk 0:01:47.8]} 34. Kh1
{[%clk 0:01:19.7]} 34... h4 {[%clk 0:01:45.4]} 35. a4 {[%clk 0:01:17.9]} 35...
Nf8 {[%clk 0:01:42.9]} 36. a5 {[%clk 0:01:17]} 36... Nh7 {[%clk 0:01:42.7]} 37.
Qb6 {[%clk 0:01:15.2]} 37... Ng5 {[%clk 0:01:39.1]} 38. Bf2 {[%clk 0:01:15.1]}
38... Qf4 {[%clk 0:01:34.7]} 39. Be3 {[%clk 0:01:09.8]} 39... Qf1+ {[%clk
0:01:31.2]} 40. Kh2 {[%clk 0:01:10.3]} 40... Ne4 {[%clk 0:01:31.3]} 41. Bg1
{[%clk 0:00:45.9]} 41... Qf4+ {[%clk 0:01:29.7]} 42. Kh1 {[%clk 0:00:44.9]}
42... Ng3+ {[%clk 0:01:29.5]} 43. Kh2 {[%clk 0:00:45.6]} 43... Ne2+ {[%clk
0:01:25.8]} 44. Kh1 {[%clk 0:00:44.3]} 44... Qf1 {[%clk 0:01:22.4]} 45. Kh2
{[%clk 0:00:40.7]} 45... Qxg1+ {[%clk 0:01:21.9]} 0-1

[Event "Early-Titled-Tuesday-Blitz-October-03-2023"]
[Site "Chess.com"]
[Date "2023.10.03"]
[Round "1"]
[White "Anton_Demchenko"]
[Black "brm72"]
[Result "1-0"]
[WhiteElo "2908"]
[BlackElo "2500"]
[TimeControl "180+1"]
[EndTime "8:05:54 PDT"]
[Termination "Anton_Demchenko won by resignation"]

1. e4 {[%clk 0:02:56.6]} 1... c5 {[%clk 0:03:00.2]} 2. Nf3 {[%clk 0:02:56.1]}
2... d6 {[%clk 0:02:58.8]} 3. d4 {[%clk 0:02:55.9]} 3... cxd4 {[%clk 0:02:56.2]}
4. Nxd4 {[%clk 0:02:56.8]} 4... Nf6 {[%clk 0:02:56.7]} 5. Nc3 {[%clk 0:02:57.2]}
5... a6 {[%clk 0:02:56.8]} 6. Bd3 {[%clk 0:02:56.7]} 6... e5 {[%clk 0:02:55.8]}
7. Nde2 {[%clk 0:02:56.6]} 7... Be7 {[%clk 0:02:51]} 8. O-O {[%clk 0:02:56.3]}
8... O-O {[%clk 0:02:50.1]} 9. h3 {[%clk 0:02:56.9]} 9... b5 {[%clk 0:02:48.8]}
10. Ng3 {[%clk 0:02:55.1]} 10... Nc6 {[%clk 0:02:43.9]} 11. Be3 {[%clk
0:02:53.7]} 11... Be6 {[%clk 0:02:37.8]} 12. a4 {[%clk 0:02:53.3]} 12... b4
{[%clk 0:02:36.5]} 13. Nd5 {[%clk 0:02:53.5]} 13... Nd7 {[%clk 0:01:55.3]} 14.
Bc4 {[%clk 0:02:42.3]} 14... Nc5 {[%clk 0:01:25.6]} 15. Bxc5 {[%clk 0:02:30.5]}
15... dxc5 {[%clk 0:01:25.3]} 16. Qd3 {[%clk 0:02:30.7]} 16... a5 {[%clk
0:01:18.4]} 17. c3 {[%clk 0:02:29.7]} 17... Bg5 {[%clk 0:01:11.3]} 18. Rad1
{[%clk 0:02:28.3]} 18... Rb8 {[%clk 0:01:03.4]} 19. Qe2 {[%clk 0:02:22.5]} 19...
Qc8 {[%clk 0:00:48.9]} 20. Qf3 {[%clk 0:01:56.4]} 20... Ne7 {[%clk 0:00:37.2]}
21. Nf5 {[%clk 0:01:31.1]} 21... Nxf5 {[%clk 0:00:29]} 22. exf5 {[%clk
0:01:31.7]} 22... Bxf5 {[%clk 0:00:29.3]} 23. Qg3 {[%clk 0:01:31.1]} 23... Bd8
{[%clk 0:00:21]} 24. Qxe5 {[%clk 0:01:30.9]} 24... Be6 {[%clk 0:00:20.1]} 25.
Rfe1 {[%clk 0:01:29.6]} 25... Bxd5 {[%clk 0:00:19.2]} 26. Rxd5 {[%clk
0:01:20.2]} 26... Bf6 {[%clk 0:00:19.4]} 27. Qg3 {[%clk 0:01:13.5]} 27... Re8
{[%clk 0:00:18.5]} 28. Red1 {[%clk 0:01:12.7]} 28... Qc6 {[%clk 0:00:16.2]} 29.
Rd7 {[%clk 0:01:09.7]} 29... Rf8 {[%clk 0:00:15.7]} 30. Rxf7 {[%clk 0:01:09.4]}
30... Rxf7 {[%clk 0:00:14.9]} 31. Qxb8+ {[%clk 0:01:09]} 1-0

[Event "Early-Titled-Tuesday-Blitz-October-03-2023"]
[Site "Chess.com"]
[Date "2023.10.03"]
[Round "1"]
[White "goldihouse"]
[Black "parintele_chess"]
[Result "1-0"]
[WhiteElo "2602"]
[BlackElo "2259"]
[TimeControl "180+1"]
[EndTime "8:05:57 PDT"]
[Termination "goldihouse won on time"]

1. c4 {[%clk 0:03:00]} 1... c5 {[%clk 0:02:53.8]} 2. g3 {[%clk 0:03:00.1]} 2...
g6 {[%clk 0:02:53.1]} 3. Bg2 {[%clk 0:03:01]} 3... Bg7 {[%clk 0:02:53.6]} 4. Nc3
{[%clk 0:03:01.8]} 4... Nc6 {[%clk 0:02:53.5]} 5. a3 {[%clk 0:03:01]} 5... a5
{[%clk 0:02:40.1]} 6. e3 {[%clk 0:02:54.3]} 6... e5 {[%clk 0:02:31.7]} 7. Nge2
{[%clk 0:02:48]} 7... Nge7 {[%clk 0:02:29.6]} 8. O-O {[%clk 0:02:47.5]} 8... O-O
{[%clk 0:02:29.3]} 9. Rb1 {[%clk 0:02:46.6]} 9... d6 {[%clk 0:02:26]} 10. d3
{[%clk 0:02:46.5]} 10... Be6 {[%clk 0:02:22.2]} 11. Nd5 {[%clk 0:02:46.7]} 11...
Bxd5 {[%clk 0:02:17.1]} 12. cxd5 {[%clk 0:02:46.6]} 12... Nb8 {[%clk 0:02:16.8]}
13. b4 {[%clk 0:02:45.3]} 13... axb4 {[%clk 0:02:16.5]} 14. axb4 {[%clk
0:02:45.3]} 14... cxb4 {[%clk 0:02:03.9]} 15. Rxb4 {[%clk 0:02:44.4]} 15... Na6
{[%clk 0:02:04.5]} 16. Rxb7 {[%clk 0:02:41.6]} 16... Nc5 {[%clk 0:02:05.1]} 17.
Rb1 {[%clk 0:02:39.4]} 17... Qa5 {[%clk 0:01:57.8]} 18. Bd2 {[%clk 0:02:32.7]}
18... Qa6 {[%clk 0:01:51]} 19. d4 {[%clk 0:02:31.7]} 19... exd4 {[%clk 0:01:28]}
20. Nxd4 {[%clk 0:02:21.9]} 20... Qd3 {[%clk 0:01:27.2]} 21. Bb4 {[%clk
0:02:19.1]} 21... Rfd8 {[%clk 0:00:49.3]} 22. Nc6 {[%clk 0:02:11.6]} 22... Nxc6
{[%clk 0:00:24.4]} 23. dxc6 {[%clk 0:02:12.5]} 23... Rac8 {[%clk 0:00:20.8]} 24.
Ba5 {[%clk 0:01:52]} 24... Re8 {[%clk 0:00:18.6]} 25. Qxd3 {[%clk 0:01:47.8]}
25... Nxd3 {[%clk 0:00:19.5]} 26. Rfd1 {[%clk 0:01:48.1]} 26... Ne5 {[%clk
0:00:18.6]} 27. Rdc1 {[%clk 0:01:29.3]} 27... Ra8 {[%clk 0:00:08.4]} 28. Bb6
{[%clk 0:01:23.4]} 28... Ra6 {[%clk 0:00:06.7]} 29. c7 {[%clk 0:01:21]} 29...
Rc8 {[%clk 0:00:06.4]} 30. Bb7 {[%clk 0:01:20.4]} 1-0

[Event "Early-Titled-Tuesday-Blitz-October-03-2023"]
[Site "Chess.com"]
[Date "2023.10.03"]
[Round "1"]
[White "pankajfm"]
[Black "whiteglovethief"]
[Result "0-1"]
[WhiteElo "2099"]
[BlackElo "2534"]
[TimeControl "180+1"]
[EndTime "8:05:57 PDT"]
[Termination "whiteglovethief won by resignation"]

1. d4 {[%clk 0:02:55.4]} 1... Nf6 {[%clk 0:02:59.6]} 2. Bf4 {[%clk 0:02:54.4]}
2... g6 {[%clk 0:02:58.2]} 3. Nc3 {[%clk 0:02:52.1]} 3... Bg7 {[%clk 0:02:54.8]}
4. e4 {[%clk 0:02:52]} 4... O-O {[%clk 0:02:54.4]} 5. Qd2 {[%clk 0:02:41.8]}
5... d5 {[%clk 0:02:50.5]} 6. e5 {[%clk 0:02:41.6]} 6... Ne4 {[%clk 0:02:50.3]}
7. Nxe4 {[%clk 0:02:41.6]} 7... dxe4 {[%clk 0:02:51.2]} 8. c3 {[%clk 0:02:42.3]}
8... c5 {[%clk 0:02:51.1]} 9. Bh6 {[%clk 0:02:35.9]} 9... cxd4 {[%clk
0:02:45.1]} 10. cxd4 {[%clk 0:02:32.2]} 10... Bxh6 {[%clk 0:02:43.3]} 11. Qxh6
{[%clk 0:02:28.8]} 11... Qxd4 {[%clk 0:02:43.4]} 12. Ne2 {[%clk 0:02:17.1]}
12... Qxb2 {[%clk 0:02:40.3]} 13. Rd1 {[%clk 0:02:15.4]} 13... Qxe5 {[%clk
0:02:37.2]} 14. Nd4 {[%clk 0:01:51.4]} 14... Qa5+ {[%clk 0:02:24.9]} 15. Rd2
{[%clk 0:01:49.7]} 15... Rd8 {[%clk 0:02:19.9]} 16. Nb3 {[%clk 0:01:48.1]} 16...
Qc3 {[%clk 0:02:14.6]} 17. Qe3 {[%clk 0:01:41.8]} 17... Qxe3+ {[%clk 0:02:11.7]}
18. fxe3 {[%clk 0:01:41.9]} 18... Rxd2 {[%clk 0:02:11.8]} 19. Kxd2 {[%clk
0:01:40.6]} 19... Nc6 {[%clk 0:02:10.3]} 20. Bb5 {[%clk 0:01:40.5]} 20... Be6
{[%clk 0:02:06.2]} 21. Nc5 {[%clk 0:01:39.7]} 21... Rd8+ {[%clk 0:01:55.4]} 22.
Ke2 {[%clk 0:01:21.8]} 22... Rd5 {[%clk 0:01:36.5]} 23. Bxc6 {[%clk 0:00:48.6]}
23... Rxc5 {[%clk 0:01:34.6]} 24. Bxe4 {[%clk 0:00:48.4]} 24... Bxa2 {[%clk
0:01:32.2]} 25. Ra1 {[%clk 0:00:47.8]} 25... Bc4+ {[%clk 0:01:30.3]} 26. Kf2
{[%clk 0:00:45.5]} 26... Ba6 {[%clk 0:01:30.6]} 27. Rd1 {[%clk 0:00:40]} 27...
Rc7 {[%clk 0:01:29.2]} 28. Rd8+ {[%clk 0:00:39]} 28... Kg7 {[%clk 0:01:29.7]}
29. Ra8 {[%clk 0:00:38.9]} 29... b6 {[%clk 0:01:27.5]} 30. Rd8 {[%clk
0:00:38.8]} 30... Bb5 {[%clk 0:01:26.6]} 31. Rb8 {[%clk 0:00:34.9]} 31... Bc6
{[%clk 0:01:26.5]} 32. Bxc6 {[%clk 0:00:33.6]} 32... Rxc6 {[%clk 0:01:27.4]} 33.
Rb7 {[%clk 0:00:34.3]} 33... a5 {[%clk 0:01:21.9]} 34. Rxe7 {[%clk 0:00:34.3]}
34... a4 {[%clk 0:01:21.5]} 35. Ra7 {[%clk 0:00:33.5]} 35... b5 {[%clk
0:01:21.4]} 36. Rb7 {[%clk 0:00:33.1]} 36... Ra6 {[%clk 0:01:17.8]} 37. Rxb5
{[%clk 0:00:32.2]} 37... a3 {[%clk 0:01:18.1]} 38. Rb1 {[%clk 0:00:32.8]} 38...
a2 {[%clk 0:01:18.4]} 39. Ra1 {[%clk 0:00:33.5]} 39... f5 {[%clk 0:01:18.5]} 40.
Ke2 {[%clk 0:00:34.2]} 40... Kf6 {[%clk 0:01:19.1]} 41. Kd2 {[%clk 0:00:34.6]}
41... Ke5 {[%clk 0:01:19.8]} 0-1

[Event "Early-Titled-Tuesday-Blitz-October-03-2023"]
[Site "Chess.com"]
[Date "2023.10.03"]
[Round "1"]
[White "deribas12345"]
[Black "AlexandraSamaganova"]
[Result "1-0"]
[WhiteElo "2579"]
[BlackElo "2214"]
[TimeControl "180+1"]
[EndTime "8:05:59 PDT"]
[Termination "deribas12345 won by resignation"]

1. d4 {[%clk 0:01:57.6]} 1... Nf6 {[%clk 0:02:58.7]} 2. c4 {[%clk 0:01:55.5]}
2... e6 {[%clk 0:02:54.8]} 3. Nc3 {[%clk 0:01:55.1]} 3... Bb4 {[%clk 0:02:54.1]}
4. a3 {[%clk 0:01:55.2]} 4... Bxc3+ {[%clk 0:02:54.1]} 5. bxc3 {[%clk
0:01:56.1]} 5... O-O {[%clk 0:02:54]} 6. f3 {[%clk 0:01:56.5]} 6... d5 {[%clk
0:02:53]} 7. e3 {[%clk 0:01:56.4]} 7... b6 {[%clk 0:02:50]} 8. cxd5 {[%clk
0:01:55.3]} 8... Nxd5 {[%clk 0:02:44.9]} 9. Bd2 {[%clk 0:01:53.7]} 9... Bb7
{[%clk 0:02:41.1]} 10. Bd3 {[%clk 0:01:52]} 10... c5 {[%clk 0:02:34.2]} 11. Ne2
{[%clk 0:01:51.5]} 11... Nc6 {[%clk 0:02:30.8]} 12. O-O {[%clk 0:01:50.8]} 12...
Rc8 {[%clk 0:02:28.8]} 13. e4 {[%clk 0:01:47.4]} 13... Nf6 {[%clk 0:02:23.2]}
14. Be3 {[%clk 0:01:47]} 14... cxd4 {[%clk 0:02:17]} 15. cxd4 {[%clk 0:01:47.9]}
15... h6 {[%clk 0:02:11.5]} 16. Rc1 {[%clk 0:01:41.6]} 16... Qe7 {[%clk
0:02:04]} 17. Qa4 {[%clk 0:01:37.5]} 17... Rfd8 {[%clk 0:01:58.1]} 18. Kh1
{[%clk 0:01:31.1]} 18... Na5 {[%clk 0:01:40.3]} 19. g4 {[%clk 0:01:23.1]} 19...
Bc6 {[%clk 0:01:36.4]} 20. Qb4 {[%clk 0:01:20.3]} 20... Qb7 {[%clk 0:01:31.6]}
21. g5 {[%clk 0:01:16.6]} 21... hxg5 {[%clk 0:01:04.9]} 22. Bxg5 {[%clk
0:01:15.9]} 22... Qd7 {[%clk 0:00:35.1]} 23. Bxf6 {[%clk 0:01:04.3]} 23... gxf6
{[%clk 0:00:36]} 24. Rg1+ {[%clk 0:01:04.3]} 24... Kh8 {[%clk 0:00:33.9]} 25.
Qd2 {[%clk 0:01:03.7]} 25... Kh7 {[%clk 0:00:26.2]} 26. Qe1 {[%clk 0:01:00.3]}
1-0

[Event "Early-Titled-Tuesday-Blitz-October-03-2023"]
[Site "Chess.com"]
[Date "2023.10.03"]
[Round "1"]
[White "Riku-gan"]
[Black "MaxLeto"]
[Result "1-0"]
[WhiteElo "2906"]
[BlackElo "2496"]
[TimeControl "180+1"]
[EndTime "8:06:01 PDT"]
[Termination "Riku-gan won on time"]

1. e4 {[%clk 0:02:52.1]} 1... c5 {[%clk 0:01:38.4]} 2. Nf3 {[%clk 0:02:49.9]}
2... d6 {[%clk 0:01:29.2]} 3. b4 {[%clk 0:02:47.3]} 3... cxb4 {[%clk 0:01:29.2]}
4. d4 {[%clk 0:02:46.4]} 4... Nf6 {[%clk 0:01:24.8]} 5. Bd3 {[%clk 0:02:39.4]}
5... Bg4 {[%clk 0:01:22.9]} 6. h3 {[%clk 0:02:37.7]} 6... Bxf3 {[%clk
0:01:16.2]} 7. Qxf3 {[%clk 0:02:38.6]} 7... e6 {[%clk 0:01:16.6]} 8. O-O {[%clk
0:02:28.5]} 8... Nc6 {[%clk 0:01:11.6]} 9. Be3 {[%clk 0:02:20.5]} 9... Be7
{[%clk 0:00:27.7]} 10. Nd2 {[%clk 0:02:18.1]} 10... O-O {[%clk 0:00:26.2]} 11.
Rad1 {[%clk 0:02:17.5]} 11... Qa5 {[%clk 0:00:25.6]} 12. Qg3 {[%clk 0:02:13.6]}
12... Qxa2 {[%clk 0:00:21.8]} 13. f4 {[%clk 0:02:13.7]} 13... Qa5 {[%clk
0:00:15.4]} 14. Nf3 {[%clk 0:02:14]} 14... d5 {[%clk 0:00:14.5]} 15. e5 {[%clk
0:02:12.7]} 15... Ne4 {[%clk 0:00:15.2]} 16. Qg4 {[%clk 0:02:10.4]} 16... Rae8
{[%clk 0:00:10.1]} 17. f5 {[%clk 0:02:07.8]} 17... exf5 {[%clk 0:00:08.8]} 18.
Qxf5 {[%clk 0:02:08.7]} 18... f6 {[%clk 0:00:07.9]} 19. Bxe4 {[%clk 0:02:02.8]}
19... dxe4 {[%clk 0:00:07.8]} 20. Qxe4 {[%clk 0:02:03.7]} 20... fxe5 {[%clk
0:00:08.1]} 21. d5 {[%clk 0:02:03]} 21... Nd4 {[%clk 0:00:06]} 22. Nxe5 {[%clk
0:02:01.5]} 22... Ne2+ {[%clk 0:00:05.7]} 23. Kh1 {[%clk 0:02:01.7]} 23... Bf6
{[%clk 0:00:05.9]} 24. Qc4 {[%clk 0:01:49.4]} 24... Ng3+ {[%clk 0:00:04.2]} 25.
Kg1 {[%clk 0:01:48.3]} 25... Bxe5 {[%clk 0:00:05.1]} 26. d6+ {[%clk 0:01:45.9]}
26... Kh8 {[%clk 0:00:04.9]} 27. d7 {[%clk 0:01:45.9]} 27... Rd8 {[%clk
0:00:04.2]} 28. Rxf8+ {[%clk 0:01:41.6]} 28... Rxf8 {[%clk 0:00:05.1]} 29. Bf2
{[%clk 0:01:28.9]} 29... Nf5 {[%clk 0:00:04.1]} 30. Qf7 {[%clk 0:01:24.1]} 30...
Qd8 {[%clk 0:00:03.7]} 31. Qxf8+ {[%clk 0:01:22.5]} 31... Qxf8 {[%clk
0:00:04.6]} 32. d8=Q {[%clk 0:01:22.6]} 1-0

[Event "Early-Titled-Tuesday-Blitz-October-03-2023"]
[Site "Chess.com"]
[Date "2023.10.03"]
[Round "1"]
[White "IamSchrodingersCat"]
[Black "Polish_fighter3000"]
[Result "0-1"]
[WhiteElo "2515"]
[BlackElo "3091"]
[TimeControl "180+1"]
[EndTime "8:06:03 PDT"]
[Termination "Polish_fighter3000 won on time"]

1. e4 {[%clk 0:03:00.9]} 1... e5 {[%clk 0:02:59.3]} 2. Nf3 {[%clk 0:03:00.8]}
2... Nc6 {[%clk 0:03:00]} 3. Bb5 {[%clk 0:03:00.6]} 3... a6 {[%clk 0:03:00.5]}
4. Ba4 {[%clk 0:03:00.9]} 4... Nf6 {[%clk 0:02:59.2]} 5. d3 {[%clk 0:03:01.1]}
5... b5 {[%clk 0:02:58]} 6. Bb3 {[%clk 0:03:01.2]} 6... Bc5 {[%clk 0:02:58.6]}
7. c3 {[%clk 0:03:00.3]} 7... d6 {[%clk 0:02:58.3]} 8. O-O {[%clk 0:03:00.7]}
8... O-O {[%clk 0:02:53.7]} 9. Nbd2 {[%clk 0:02:56.1]} 9... h6 {[%clk
0:02:47.9]} 10. Re1 {[%clk 0:02:40.4]} 10... Ng4 {[%clk 0:02:42.1]} 11. Re2
{[%clk 0:02:38.8]} 11... Kh8 {[%clk 0:02:37.1]} 12. h3 {[%clk 0:02:31.6]} 12...
f5 {[%clk 0:02:35.3]} 13. exf5 {[%clk 0:01:48.7]} 13... Nxf2 {[%clk 0:02:28.2]}
14. Rxf2 {[%clk 0:01:46]} 14... Bxf2+ {[%clk 0:02:22.6]} 15. Kxf2 {[%clk
0:01:46.9]} 15... Bxf5 {[%clk 0:02:22.8]} 16. Qe2 {[%clk 0:01:22.8]} 16... d5
{[%clk 0:02:19]} 17. Kg1 {[%clk 0:01:05.3]} 17... Qd6 {[%clk 0:02:18.8]} 18. Nf1
{[%clk 0:00:53.1]} 18... Rae8 {[%clk 0:02:15]} 19. Bc2 {[%clk 0:00:37.3]} 19...
b4 {[%clk 0:02:03.8]} 20. Ba4 {[%clk 0:00:31.6]} 20... bxc3 {[%clk 0:01:50.4]}
21. bxc3 {[%clk 0:00:30.9]} 21... e4 {[%clk 0:01:50.9]} 22. Bxc6 {[%clk
0:00:19.4]} 22... exf3 {[%clk 0:01:32]} 23. Qxe8 {[%clk 0:00:15.8]} 23... f2+
{[%clk 0:01:09.3]} 24. Kh1 {[%clk 0:00:05]} 24... Rxe8 {[%clk 0:01:08.8]} 25.
Bxe8 {[%clk 0:00:05.9]} 25... Qe6 {[%clk 0:01:06.6]} 26. Bh5 {[%clk 0:00:05.2]}
26... Qe1 {[%clk 0:01:04.6]} 27. Bb2 {[%clk 0:00:03.8]} 27... Bxd3 {[%clk
0:01:04.9]} 0-1